{"text_format":"1","workbook":"xlsx","n_sheets":7,"sheets":["表紙","基本情報・事業者情報の作成","届出書の作成","【自動入力】様式第16","LIST","ETL","eAppData"],"not_rendered":{"charts":0,"images":0,"macros":1,"external_links":0,"defined_names":3,"comments":0,"pivot_tables":0},"unopened":[],"bounds":{"document_bytes":16777216,"sheet_cells":100000,"rows_first":2000,"rows_last":500,"rows_between":2000,"halvings":0,"cell_chars":16384,"cell_head_chars":4096},"cells_cut":0,"cells_raw":0,"read":"whole","date_system":"1900"}

{"sheet":"表紙","index":0,"n_rows":42,"n_cols":27,"rows_kept":42,"cut":false,"hidden":false,"merged":[[1,1,1,26],[4,1,4,26],[5,1,5,26],[6,1,6,26],[7,1,7,26],[41,3,41,7],[38,3,38,17],[28,11,28,17],[8,1,8,16],[23,3,23,26],[29,3,29,26],[32,3,32,26],[33,2,33,26],[16,3,16,10],[21,1,21,26],[18,3,18,26],[19,3,19,12],[13,3,13,10],[24,11,24,26]]}
[null,"Version","2.0.0",null,null,null,null,null,null,null,null,null,null,null,null,null,null,null,null,null,null,null,null,null,null,null,"様式改訂：2023/08/02"]
[null,"化兵法に基づく第一種、第二種指定物質予定届出の変更届出（様式第１６）の作成"]
[]
[]
[null,"すでに予定届出をされた第一種指定物質（表２剤）又は第二種指定物質（表３剤）の予定数量が以下に該当することとなる場合、変更が生じる３０日前までに変更の届出を行う必要があります。"]
[null,"・届出に係る数量の２倍を超える場合（第一種・第二種指定物質共通）"]
[null,"・届出しきい値の１０倍を超える場合（第一種指定物質）"]
[null,"・２００トンを超える場合（第二種指定物質）"]
[]
[]
[null,"届出・申告書の作成・提出手順"]
[]
[null,null,"①","「基本情報・事業所情報の作成」シートで届出する基本情報と事業所情報を入力して下さい。"]
[null,null,null,"基本情報・事業所情報の入力へ→　"]
[]
[null,null,"②","「届出書の作成」シートで届出する情報を入力して下さい。"]
[null,null,null,"届出書の情報の入力へ→　"]
[]
[null,null,"③","「【自動入力】様式第１６」シートで届出の内容を確認して下さい。修正が必要な場合は、①または②のシートに入力された情報を修正してください。"]
[null,null,null,"【自動入力】様式第１６へ→"]
[]
[null,"※変更届出書（様式第１６）は、製造等／使用（表２剤）又は製造（表3剤）の実績数量が予定申告数量を超える場合にご提出頂きますが、\n　 その際、OPCW向け申告書面の修正版を添付して頂くことになっています。\n　 予定届出書提出の際に添付して頂いたOPCW向け申告書面を修正した上で、そのPDFファイルを併せてご提出頂けますようお願い致します。"]
[]
[null,null,"④","エクセルファイルを保存してください。なお、ファイルの名称はわかりやすいように変更していただいてかまいませんが、ファイル名先頭の３文字（「Y16」）は変更しないでください（\"16\"は届出様式番号２桁を示しており、当該文字列がないと電子申請が受理されません。）。また、e-Govでは一部の記号文字をファイル名に使うことができません（例：“-”、“_”等。詳細は以下のe-Gov電子申請ウェブサイトを参照ください）。"]
[null,null,null,null,"ファイル名に使用できる文字：",null,null,null,null,null,null,"https://shinsei.e-gov.go.jp/contents/help/notes/filename-letters.html"]
[]
[null,null,"⑤","保存された電子申請用エクセルファイル及び添付資料をe-Gov電子申請ウェブサイトから電子申請します。"]
[]
[null,null,null,null,"e-Gov電子申請ウェブサイト：",null,null,null,null,null,null,"https://shinsei.e-gov.go.jp/"]
[null,null,null,"※ご不明な点などございましたら、下記「参考情報」欄の経済産業省ウェブサイトをご参照下さい。"]
[]
[null,"注意事項"]
[]
[null,null,"・当該ファイルはマクロ機能を利用しておりますため、マクロ機能を有効に（「コンテンツの有効化」）していただけますようお願いいたします。\n・入力欄のコピー＆ペーストは行わないようにお願いいたします（セルの構造が壊れてしまいますため）。\n・上記①（「基本情報・事業所情報の作成」）及び②（「届出書の作成」）のシートにつきましては、一番右の列（Ｘ列）に自動入力チェック欄がございます。その欄に「未入力」と表示されている箇所がございましたら、同じ行の情報をご入力いただけますようお願いいたします。"]
[]
[null,"参考情報"]
[]
[null,null,"○経済産業省ウェブサイト（化学兵器禁止法　届出・申告関係及びお問合せ先）"]
[null,null,null,"https://www.meti.go.jp/policy/chemical_management/cwc/todokede.html"]
[]
[null,null,"○gビズID（e-Gov他様々な行政サービスにログインできるサービス）"]
[null,null,null,"https://gbiz-id.go.jp/top/"]

{"sheet":"基本情報・事業者情報の作成","index":1,"n_rows":113,"n_cols":24,"rows_kept":113,"cut":false,"hidden":false,"merged":[[46,21,46,22],[109,21,109,22],[69,3,76,10],[69,21,69,22],[70,21,70,22],[71,21,71,22],[72,21,72,22],[73,21,73,22],[74,21,74,22],[75,21,75,22],[76,21,76,22],[61,3,68,10],[61,21,61,22],[62,21,62,22],[63,21,63,22],[64,21,64,22],[65,21,65,22],[66,21,66,22],[67,21,67,22],[68,21,68,22],[47,21,47,22],[48,21,48,22],[49,21,49,22],[53,3,60,10],[53,21,53,22],[54,21,54,22],[55,21,55,22],[56,21,56,22],[57,21,57,22],[58,21,58,22],[59,21,59,22],[60,21,60,22],[26,2,26,21],[40,3,40,6],[40,8,40,9],[40,11,40,12],[43,3,43,6],[43,8,43,9],[43,11,43,12],[24,2,24,22],[1,1,1,23],[3,2,3,22],[6,3,6,6],[6,7,6,21],[7,7,7,21],[8,7,8,22],[9,3,9,6],[9,7,9,21],[10,7,10,22],[11,3,11,6],[11,7,11,21],[108,1,112,5],[108,6,108,20],[108,21,108,22],[110,21,110,22],[111,21,111,22],[112,21,112,22]]}
[null,null,null,null,null,null,null,null,null,null,null,null,null,null,null,null,null,null,null,null,null,null,null,"様式改訂：2023/08/02"]
[null,"化兵法に基づく届出書の基本情報・事業所情報"]
[]
[null,null,"届出書の作成シートでは、化兵法に基づく届出書の基本情報と事業所情報を入力してください。"]
[]
[]
[null,null,null,"ピンク",null,null,null," の部分は、入力必須です。"]
[]
[]
[null,null,null,"ブルー",null,null,null," の部分は、設問項目に該当しない場合は、入力不要（空欄可）です。"]
[]
[null,null,null,"グレー",null,null,null," の部分は、入力不要です。"]
[]
[]
[]
[]
[]
[]
[]
[]
[]
[]
[null,"過去または他の化兵法届出で作成した基本情報・事業所情報を自動で転記することができます。"]
[]
[null,null,"①化兵法の届出エクセルファイルを指定してください。（「ファイル選択…」ボタン）\n②「取込」ボタンをクリックすると、「基本情報・事業所情報の作成」シートに入力した内容がこのシートに転記されます。\n※既に入力済の項目は上書きされますのでご注意ください。(念のため、このファイルのバックアップを取ってから実行することをお勧めします。）\n※なお、本機能は「基本情報・事業所情報の作成」シートのみ転記を行います。「届出書の作成」シートは更新（上書き）されません。"]
[null,null,"転記元ファイル："]
[]
[]
[]
[]
[]
[]
[]
[]
[]
[]
[]
[null,"基本情報を入力してください。"]
[]
[null,"１．届出日を西暦で入力してください。（例：2023年4月15日）",null,null,null,null,null,null,null,null,null,null,null,null,null,null,null,null,null,null,null,null,null,"自動入力チェック"]
[null,null,null,null,null,null,null,"年",null,null,"月",null,null,"日",null,null,null,null,null,null,null,null,null,{"$f":"IF(OR($D41=\"\",$I41=\"\",$L41=\"\"),\"未入力\",\"\")","v":"未入力"}]
[]
[null,"２．届出対象年を西暦４桁で入力してください。（例：2023）",null,null,null,null,null,null,null,null,null,null,null,null,null,null,null,null,null,null,null,null,null,"自動入力チェック"]
[null,null,null,null,null,null,null,"年",null,null,null,null,null,null,null,null,null,null,null,null,null,null,null,{"$f":"IF($D44=\"\",\"未入力\",\"\")","v":"未入力"}]
[null,"３．届出者の情報を入力してください（届出者が法人代表でない場合には、届出を委任された届出者の情報（例：事業所長、工場長）を入力してください。）。"]
[null,null,null,null,null,null,null,null,null,null,null,null,null,null,null,null,null,null,null,null,null,"日本語",null,"自動入力チェック"]
[null,null,null,"氏名または名称",null,null,null,null,null,null,null,null,null,null,null,null,null,null,null,null,null,null,null,{"$f":"IF($V47=\"\",\"未入力\",\"\")","v":"未入力"}]
[null,null,null,"法人にあっては、\nその代表者の役職",null,null,null,null,null,null,null,null,null,null,null,null,null,null,null,null,null,null,null,""]
[null,null,null,"法人にあっては、\nその代表者の氏名",null,null,null,null,null,null,null,null,null,null,null,null,null,null,null,null,null,null,null,""]
[null,null,null,"住所",null,null,null,null,null,null,null,null,null,null,null,null,null,null,null,null,null,null,null,{"$f":"IF($V50=\"\",\"未入力\",\"\")","v":"未入力"}]
[]
[]
[null,"４．届出関係担当者の情報を入力してください。",null,null,null,null,null,null,null,null,null,null,null,null,null,null,null,null,null,null,null,"日本語",null,"自動入力チェック"]
[null,null,null,"担当者の情報①",null,null,null,null,null,null,null,"氏名",null,null,null,null,null,null,null,null,null,null,null,{"$f":"IF($V54=\"\",\"未入力\",\"\")","v":"未入力"}]
[null,null,null,null,null,null,null,null,null,null,null,"郵便番号",null,null,null,null,null,null,null,null,null,null,null,""]
[null,null,null,null,null,null,null,null,null,null,null,"住所",null,null,null,null,null,null,null,null,null,null,null,""]
[null,null,null,null,null,null,null,null,null,null,null,"部署名",null,null,null,null,null,null,null,null,null,null,null,""]
[null,null,null,null,null,null,null,null,null,null,null,"役職",null,null,null,null,null,null,null,null,null,null,null,""]
[null,null,null,null,null,null,null,null,null,null,null,"電話番号",null,null,null,null,null,null,null,null,null,null,null,{"$f":"IF($V59=\"\",\"未入力\",\"\")","v":"未入力"}]
[null,null,null,null,null,null,null,null,null,null,null,"FAX番号",null,null,null,null,null,null,null,null,null,null,null,""]
[null,null,null,null,null,null,null,null,null,null,null,"メールアドレス",null,null,null,null,null,null,null,null,null,null,null,{"$f":"IF($V61=\"\",\"未入力\",\"\")","v":"未入力"}]
[null,null,null,"担当者の情報②",null,null,null,null,null,null,null,"氏名",null,null,null,null,null,null,null,null,null,null,null,""]
[null,null,null,null,null,null,null,null,null,null,null,"郵便番号",null,null,null,null,null,null,null,null,null,null,null,""]
[null,null,null,null,null,null,null,null,null,null,null,"住所",null,null,null,null,null,null,null,null,null,null,null,""]
[null,null,null,null,null,null,null,null,null,null,null,"部署名",null,null,null,null,null,null,null,null,null,null,null,""]
[null,null,null,null,null,null,null,null,null,null,null,"役職",null,null,null,null,null,null,null,null,null,null,null,""]
[null,null,null,null,null,null,null,null,null,null,null,"電話番号",null,null,null,null,null,null,null,null,null,null,null,""]
[null,null,null,null,null,null,null,null,null,null,null,"FAX番号",null,null,null,null,null,null,null,null,null,null,null,""]
[null,null,null,null,null,null,null,null,null,null,null,"メールアドレス",null,null,null,null,null,null,null,null,null,null,null,""]
[null,null,null,"担当者の情報③",null,null,null,null,null,null,null,"氏名",null,null,null,null,null,null,null,null,null,null,null,""]
[null,null,null,null,null,null,null,null,null,null,null,"郵便番号",null,null,null,null,null,null,null,null,null,null,null,""]
[null,null,null,null,null,null,null,null,null,null,null,"住所",null,null,null,null,null,null,null,null,null,null,null,""]
[null,null,null,null,null,null,null,null,null,null,null,"部署名",null,null,null,null,null,null,null,null,null,null,null,""]
[null,null,null,null,null,null,null,null,null,null,null,"役職",null,null,null,null,null,null,null,null,null,null,null,""]
[null,null,null,null,null,null,null,null,null,null,null,"電話番号",null,null,null,null,null,null,null,null,null,null,null,""]
[null,null,null,null,null,null,null,null,null,null,null,"FAX番号",null,null,null,null,null,null,null,null,null,null,null,""]
[null,null,null,null,null,null,null,null,null,null,null,"メールアドレス",null,null,null,null,null,null,null,null,null,null,null,""]
[]
[]
[]
[]
[]
[]
[]
[]
[]
[]
[]
[]
[]
[]
[]
[]
[]
[]
[]
[]
[]
[]
[]
[]
[]
[]
[]
[]
[null,"届出を行う事業所の情報を入力して下さい。"]
[]
[null,null,null,null,null,null,null,null,null,null,null,null,null,null,null,null,null,null,null,null,null,"日本語",null,"自動入力チェック"]
[null,"事業者の情報",null,null,null,null,"事業所の名称（「会社名 事業所名」で入力）",null,null,null,null,null,null,null,null,null,null,null,null,null,null,null,null,{"$f":"IF($V109=\"\",\"未入力\",\"\")","v":"未入力"}]
[null,null,null,null,null,null,"事業所コード",null,null,null,null,null,null,null,null,null,null,null,null,null,null,null,null,{"$f":"IF($V110=\"\",\"未入力\",\"\")","v":"未入力"}]
[null,null,null,null,null,null,"所在地",null,null,null,null,"都道府県",null,null,null,null,null,null,null,null,null,null,null,{"$f":"IF($V111=\"\",\"未入力\",\"\")","v":"未入力"}]
[null,null,null,null,null,null,null,null,null,null,null,"市／区／郡",null,null,null,null,null,null,null,null,null,null,null,{"$f":"IF($V112=\"\",\"未入力\",\"\")","v":"未入力"}]
[null,null,null,null,null,null,null,null,null,null,null,"町村および番地",null,null,null,null,null,null,null,null,null,null,null,{"$f":"IF($V113=\"\",\"未入力\",\"\")","v":"未入力"}]

{"sheet":"届出書の作成","index":2,"n_rows":19,"n_cols":24,"rows_kept":19,"cut":false,"hidden":false,"merged":[[14,21,14,22],[15,21,15,22],[16,21,16,22],[17,21,17,22],[18,21,18,22],[8,7,8,22],[1,1,1,23],[3,2,3,22],[6,3,6,6],[6,7,6,21],[7,7,7,21]]}
[null,null,null,null,null,null,null,null,null,null,null,null,null,null,null,null,null,null,null,null,null,null,null,"様式改訂：2023/08/02"]
[null,"化兵法に基づく第一種、第二種指定物質予定届出の変更届出（様式第１６）の作成"]
[]
[null,null,"第一種指定物質を製造・抽出・精製（副生成を含む。）又は使用する事業者は当該活動の予定と実績を国に届け出ることになっています。また、併せて提出することとされている国際機関に申告するための書面では、化学兵器禁止法の第一種指定物質は化学兵器禁止条約では表２剤（Schedule 2 Chemical)との用語となっています。\n届出書の作成【予定届出】シートでは、第一種指定化学物質（表２剤）の予定届出（様式１５）および申告書の作成に必要な情報を記入してください。"]
[]
[]
[null,null,null,"ピンク",null,null,null," の部分は、入力必須です。"]
[]
[]
[]
[]
[]
[null,"変更事項を入力してください。"]
[]
[null,null,null,null,null,null,null,null,null,null,null,null,null,null,null,null,null,null,null,null,null,null,null,"自動入力チェック"]
[null,null,null,"変更事項",null,null,null,null,null,null,null,null,null,null,null,null,null,null,null,null,null,null,null,{"$f":"IF($V$16=\"\",\"未入力\",\"\")","v":"未入力"}]
[null,null,null,"変更内容",null,null,null,null,null,null,null,null,"新",null,null,null,null,null,null,null,null,null,null,{"$f":"IF($V$17=\"\",\"未入力\",\"\")","v":"未入力"}]
[null,null,null,null,null,null,null,null,null,null,null,null,"旧",null,null,null,null,null,null,null,null,null,null,{"$f":"IF($V$18=\"\",\"未入力\",\"\")","v":"未入力"}]
[null,null,null,"変更予定年月日",null,null,null,null,null,null,null,null,null,null,null,null,null,null,null,null,null,null,null,{"$f":"IF($V$19=\"\",\"未入力\",\"\")","v":"未入力"}]

{"sheet":"【自動入力】様式第16","index":3,"n_rows":23,"n_cols":37,"rows_kept":23,"cut":false,"hidden":false,"merged":[[20,12,20,15],[20,16,20,36],[21,1,21,15],[21,16,21,36],[13,13,13,21],[16,1,16,36],[18,1,18,15],[18,16,18,36],[19,1,19,11],[19,12,19,15],[19,16,19,36],[13,23,13,35],[2,1,2,36],[5,0,5,20],[8,1,8,23],[9,13,11,21],[11,36,11,37],[5,26,5,36],[9,23,9,35],[11,23,11,35]]}
["（別紙様式１）","様式第１６（第１６条、第１８条、第１９条関係）"]
[]
[null,"変更届出書"]
[]
[]
[null,null,null,null,null,null,null,null,null,null,null,null,null,null,null,null,null,null,null,null,null,null,null,null,null,null,{"$f":"ETL!$G$4","v":{"$error":"#NUM!"}}]
[]
[]
[null,"経済産業大臣殿"]
[null,null,null,null,null,null,null,null,null,null,null,null,null,"氏名又は名称及び法人にあっては、その代表者の氏名",null,null,null,null,null,null,null,null,null,{"$f":"ETL!$D$7","v":""}]
[]
[null,null,null,null,null,null,null,null,null,null,null,null,null,null,null,null,null,null,null,null,null,null,null,{"$f":"ETL!$G$8","v":""},null,null,null,null,null,null,null,null,null,null,null,null,"印"]
[]
[null,null,null,null,null,null,null,null,null,null,null,null,null,"住　所",null,null,null,null,null,null,null,null,null,{"$f":"ETL!$D$11","v":""}]
[]
[]
[null,"　化学兵器の禁止及び特定物質の規制等に関する法律第２４条第４項（第２６条（第２７条）において準用する第２４条第４項）の規定により次のとおり届け出ます。"]
[]
[null,"変更事項",null,null,null,null,null,null,null,null,null,null,null,null,null,null,{"$f":"ETL!$D$77","v":""}]
[null,"変更内容",null,null,null,null,null,null,null,null,null,null,"新",null,null,null,{"$f":"ETL!$D$78","v":""}]
[null,null,null,null,null,null,null,null,null,null,null,null,"旧",null,null,null,{"$f":"ETL!$D$79","v":""}]
[null,"変更予定年月日",null,null,null,null,null,null,null,null,null,null,null,null,null,null,{"$f":"ETL!$G$81","v":""}]
[null,"備考",null,null,null,"用紙の大きさは、日本産業規格Ａ４とすること。"]

{"sheet":"LIST","index":4,"n_rows":51,"n_cols":4,"rows_kept":51,"cut":false,"hidden":true,"merged":[[2,1,2,3]]}
[]
[]
[null,"都道府県コード"]
[null,"値","ID","英語"]
[null,"北海道",1,"Hokkaido"]
[null,"青森県",2,"Aomori"]
[null,"岩手県",3,"Iwate"]
[null,"宮城県",4,"Miyagi"]
[null,"秋田県",5,"Akita"]
[null,"山形県",6,"Yamagata"]
[null,"福島県",7,"Fukushima"]
[null,"茨城県",8,"Ibaraki"]
[null,"栃木県",9,"Tochigi"]
[null,"群馬県",10,"Gunma"]
[null,"埼玉県",11,"Saitama"]
[null,"千葉県",12,"Chiba"]
[null,"東京都",13,"Tokyo"]
[null,"神奈川県",14,"Kanagawa"]
[null,"新潟県",15,"Niigata"]
[null,"山梨県",16,"Yamanashi"]
[null,"長野県",17,"Nagano"]
[null,"静岡県",18,"Shizuoka"]
[null,"富山県",19,"Toyama"]
[null,"石川県",20,"Ishikawa"]
[null,"岐阜県",21,"Gifu"]
[null,"愛知県",22,"Aichi"]
[null,"三重県",23,"Mie"]
[null,"福井県",24,"Fukui"]
[null,"滋賀県",25,"Shiga"]
[null,"京都府",26,"Kyoto"]
[null,"大阪府",27,"Osaka"]
[null,"兵庫県",28,"Hyogo"]
[null,"奈良県",29,"Nara"]
[null,"和歌山県",30,"Wakayama"]
[null,"鳥取県",31,"Tottori"]
[null,"島根県",32,"Shimane"]
[null,"岡山県",33,"Okayama"]
[null,"広島県",34,"Hiroshima"]
[null,"山口県",35,"Yamaguchi"]
[null,"徳島県",36,"Tokushima"]
[null,"香川県",37,"Kagawa"]
[null,"愛媛県",38,"Ehime"]
[null,"高知県",39,"Kochi"]
[null,"福岡県",40,"Fukuoka"]
[null,"佐賀県",41,"Saga"]
[null,"長崎県",42,"Nagasaki"]
[null,"熊本県",43,"Kumamoto"]
[null,"大分県",44,"Oita"]
[null,"宮崎県",45,"Miyazaki"]
[null,"鹿児島県",46,"Kagoshima"]
[null,"沖縄県",47,"Okinawa"]

{"sheet":"ETL","index":5,"n_rows":81,"n_cols":7,"rows_kept":81,"cut":false,"hidden":true,"merged":[[1,0,1,2],[11,0,18,0],[19,0,26,0],[27,0,34,0],[75,0,75,2],[35,0,41,0],[42,0,48,0],[49,0,55,0],[57,0,57,2],[61,0,72,0]]}
["基本情報"]
["項目",null,null,"値",null,"データ変換","値"]
["届出日","年",null,{"$f":"基本情報・事業者情報の作成!$D$41","v":0},null,"届出年月日",{"$f":"CONCATENATE($D$3, TEXT($D$4,\"00\"), TEXT($D$5,\"00\"))","v":"00000"}]
[null,"月",null,{"$f":"基本情報・事業者情報の作成!$I$41","v":0},null,null,{"$f":"CONCATENATE(TEXT($G$5,\"ggge年\"), \"(\", $D$3, ,\"年)\",$D$4,\"月\",$D$5,\"日\")","v":{"$error":"#NUM!"}}]
[null,"日",null,{"$f":"基本情報・事業者情報の作成!$L$41","v":0},null,null,{"$f":"DATE(D3,D4,D5)","v":{"$error":"#NUM!"}}]
["届出対象年",null,null,{"$f":"基本情報・事業者情報の作成!$D$44","v":0}]
["氏名または名称",null,null,{"$f":"基本情報・事業者情報の作成!$V$47&\"\"","v":""},null,"氏名、役職など結合",{"$f":"CONCATENATE($D$7,IF($D$9=\"\",\"\",CONCATENATE(\" \",$D$9)),IF($D$10=\"\",\"\",CONCATENATE(\" \",$D$10)))","v":""}]
["氏名または名称（英語）",null,null,{"$f":"基本情報・事業者情報の作成!$W$47&\"\"","v":""},null,null,{"$f":"CONCATENATE(IF($D$9=\"\",\"\",$D$9), IF($D$10=\"\",\"\",CONCATENATE(\" \",$D$10)))","v":""}]
["法人にあっては、\nその代表者の役職",null,null,{"$f":"基本情報・事業者情報の作成!$V$48&\"\"","v":""}]
["法人にあっては、\nその代表者の氏名",null,null,{"$f":"基本情報・事業者情報の作成!$V$49&\"\"","v":""}]
["住所",null,null,{"$f":"基本情報・事業者情報の作成!$V$50&\"\"","v":""}]
["届出書関係担当者の情報①","氏名",null,{"$f":"基本情報・事業者情報の作成!$V$54&\"\"","v":""}]
[null,"郵便番号",null,{"$f":"基本情報・事業者情報の作成!$V$55&\"\"","v":""}]
[null,"住所",null,{"$f":"基本情報・事業者情報の作成!$V$56&\"\"","v":""}]
[null,"部署名",null,{"$f":"基本情報・事業者情報の作成!$V$57&\"\"","v":""}]
[null,"役職",null,{"$f":"基本情報・事業者情報の作成!$V$58&\"\"","v":""}]
[null,"電話番号",null,{"$f":"基本情報・事業者情報の作成!$V$59&\"\"","v":""}]
[null,"FAX番号",null,{"$f":"基本情報・事業者情報の作成!$V$60&\"\"&\"\"","v":""}]
[null,"メールアドレス",null,{"$f":"基本情報・事業者情報の作成!$V$61&\"\"","v":""}]
["届出書関係担当者の情報②","氏名",null,{"$f":"基本情報・事業者情報の作成!$V$62&\"\"","v":""}]
[null,"郵便番号",null,{"$f":"基本情報・事業者情報の作成!$V$63&\"\"","v":""}]
[null,"住所",null,{"$f":"基本情報・事業者情報の作成!$V$64&\"\"","v":""}]
[null,"部署名",null,{"$f":"基本情報・事業者情報の作成!$V$65&\"\"","v":""}]
[null,"役職",null,{"$f":"基本情報・事業者情報の作成!$V$66&\"\"","v":""}]
[null,"電話番号",null,{"$f":"基本情報・事業者情報の作成!$V$67&\"\"","v":""}]
[null,"FAX番号",null,{"$f":"基本情報・事業者情報の作成!$V$68&\"\"&\"\"","v":""}]
[null,"メールアドレス",null,{"$f":"基本情報・事業者情報の作成!$V$69&\"\"","v":""}]
["届出書関係担当者の情報③","氏名",null,{"$f":"基本情報・事業者情報の作成!$V$70&\"\"","v":""}]
[null,"郵便番号",null,{"$f":"基本情報・事業者情報の作成!$V$71&\"\"","v":""}]
[null,"住所",null,{"$f":"基本情報・事業者情報の作成!$V$72&\"\"","v":""}]
[null,"部署名",null,{"$f":"基本情報・事業者情報の作成!$V$73&\"\"","v":""}]
[null,"役職",null,{"$f":"基本情報・事業者情報の作成!$V$74&\"\"","v":""}]
[null,"電話番号",null,{"$f":"基本情報・事業者情報の作成!$V$75&\"\"","v":""}]
[null,"FAX番号",null,{"$f":"基本情報・事業者情報の作成!$V$76&\"\"&\"\"","v":""}]
[null,"メールアドレス",null,{"$f":"基本情報・事業者情報の作成!$V$77&\"\"","v":""}]
["国際検査通告書関係担当者の情報①","氏名",null,{"$f":"基本情報・事業者情報の作成!$V$81&\"\"","v":""}]
[null,"住所",null,{"$f":"基本情報・事業者情報の作成!$V$82&\"\"","v":""}]
[null,"部署名",null,{"$f":"基本情報・事業者情報の作成!$V$83&\"\"","v":""}]
[null,"役職",null,{"$f":"基本情報・事業者情報の作成!$V$84&\"\"","v":""}]
[null,"電話番号",null,{"$f":"基本情報・事業者情報の作成!$V$85&\"\"","v":""}]
[null,"FAX番号",null,{"$f":"基本情報・事業者情報の作成!$V$86&\"\"","v":""}]
[null,"メールアドレス",null,{"$f":"基本情報・事業者情報の作成!$V$87&\"\"","v":""}]
["国際検査通告書関係担当者の情報②","氏名",null,{"$f":"基本情報・事業者情報の作成!$V$88&\"\"","v":""}]
[null,"住所",null,{"$f":"基本情報・事業者情報の作成!$V$89&\"\"","v":""}]
[null,"部署名",null,{"$f":"基本情報・事業者情報の作成!$V$90&\"\"","v":""}]
[null,"役職",null,{"$f":"基本情報・事業者情報の作成!$V$91&\"\"","v":""}]
[null,"電話番号",null,{"$f":"基本情報・事業者情報の作成!$V$92&\"\"","v":""}]
[null,"FAX番号",null,{"$f":"基本情報・事業者情報の作成!$V$93&\"\"","v":""}]
[null,"メールアドレス",null,{"$f":"基本情報・事業者情報の作成!$V$94&\"\"","v":""}]
["国際検査通告書関係担当者の情報③","氏名",null,{"$f":"基本情報・事業者情報の作成!$V$95&\"\"","v":""}]
[null,"住所",null,{"$f":"基本情報・事業者情報の作成!$V$96&\"\"","v":""}]
[null,"部署名",null,{"$f":"基本情報・事業者情報の作成!$V$97&\"\"","v":""}]
[null,"役職",null,{"$f":"基本情報・事業者情報の作成!$V$98&\"\"","v":""}]
[null,"電話番号",null,{"$f":"基本情報・事業者情報の作成!$V$99&\"\"","v":""}]
[null,"FAX番号",null,{"$f":"基本情報・事業者情報の作成!$V$100&\"\"","v":""}]
[null,"メールアドレス",null,{"$f":"基本情報・事業者情報の作成!$V$101&\"\"","v":""}]
["事業所情報"]
["項目",null,null,"値",null,"データ変換","値"]
["事業所の名称",null,null,{"$f":"基本情報・事業者情報の作成!$V$109&\"\"","v":""}]
["事業所の名称（英語）",null,null,{"$f":"基本情報・事業者情報の作成!$W$109&\"\"","v":""}]
["事業所コード",null,null,{"$f":"基本情報・事業者情報の作成!$V$110&\"\"","v":""}]
["所在地","都道府県",null,{"$f":"基本情報・事業者情報の作成!$V$111&\"\"","v":""},null,"都道府県コード",{"$f":"TEXT(IF($D$62=\"\", \"\", (VLOOKUP($D$62, LIST!$B$5:$C$51, 2, FALSE))), \"@\")","v":""}]
[null,"都道府県（英語）",null,{"$f":"基本情報・事業者情報の作成!$W$111&\"\"","v":""},null,"事業所所在地",{"$f":"CONCATENATE($D$62, $D$64, $D$66)","v":""}]
[null,"市／区／郡",null,{"$f":"基本情報・事業者情報の作成!$V$112&\"\"","v":""}]
[null,"市／区／郡（英語）",null,{"$f":"基本情報・事業者情報の作成!$W$112&\"\"","v":""}]
[null,"町村および番地",null,{"$f":"基本情報・事業者情報の作成!$V$113&\"\"","v":""}]
[null,"町村および番地（英語）",null,{"$f":"基本情報・事業者情報の作成!$W$113&\"\"","v":""}]
[null,"緯度（度）",null,{"$f":"基本情報・事業者情報の作成!$V$114","v":0},null,"緯度経度",{"$f":"CONCATENATE($D$68, \"/\", $D$69, \"/\", $D$70, \" N \", $D$71, \"/\", $D$72, \"/\", $D$73, \" E\")","v":"0/0/0 N 0/0/0 E"}]
[null,"緯度（分）",null,{"$f":"基本情報・事業者情報の作成!$V$115","v":0}]
[null,"緯度（秒）",null,{"$f":"基本情報・事業者情報の作成!$V$116","v":0}]
[null,"経度（度）",null,{"$f":"基本情報・事業者情報の作成!$V$117","v":0}]
[null,"経度（分）",null,{"$f":"基本情報・事業者情報の作成!$V$118","v":0}]
[null,"経度（秒）",null,{"$f":"基本情報・事業者情報の作成!$V$119","v":0}]
["事業所についての追加的情報（英語で記入）",null,null,{"$f":"基本情報・事業者情報の作成!$V$120&\"\"","v":""}]
["変更事項"]
["項目",null,null,"値"]
["変更事項",null,null,{"$f":"届出書の作成!$V$16&\"\"","v":""}]
["変更内容","新",null,{"$f":"届出書の作成!$V$17&\"\"","v":""}]
[null,"旧",null,{"$f":"届出書の作成!$V$18&\"\"","v":""}]
["変更予定年月日",null,null,{"$f":"IF(届出書の作成!$V$19=0, \"\", 届出書の作成!$V$19)","v":""},null,"変更予定年月日",{"$f":"TEXT($D$80,\"yyyymmdd\")&\"\"","v":""}]
[null,null,null,null,null,null,{"$f":"TEXT($D$80,\"ggge年\")&TEXT($D$80,\"(yyyy年)m月d日\")","v":""}]

{"sheet":"eAppData","index":6,"n_rows":8,"n_cols":52,"rows_kept":8,"cut":false,"hidden":true,"merged":[]}
["事業所マスタ",1,null,null,null,null,"配布Version",2,"様式種別","16","←配布Version、様式種別はR5年改修時追加項目"]
["No","AM018_PlantSiteCode","AM018_PlantSiteName","AM018_ProvinceCode","AM018_Province","AM018_City","AM018_Address","AM018_Report_Post_1","AM018_Report_Address_1","AM018_Report_Department_1","AM018_Report_Position_1","AM018_Report_Person_1","AM018_Report_Tel_1","AM018_Report_Fax_1","AM018_Report_Email_1","AM018_Report_Post_2","AM018_Report_Address_2","AM018_Report_Department_2","AM018_Report_Position_2","AM018_Report_Person_2","AM018_Report_Tel_2","AM018_Report_Fax_2","AM018_Report_Email_2","AM018_Report_Post_3","AM018_Report_Address_3","AM018_Report_Department_3","AM018_Report_Position_3","AM018_Report_Person_3","AM018_Report_Tel_3","AM018_Report_Fax_3","AM018_Report_Email_3","AM018_Inspectiont_Address_1","AM018_Inspectiont_Department_1","AM018_Inspectiont_Position_1","AM018_Inspectiont_Person_1","AM018_Inspectiont_Tel_1","AM018_Inspectiont_Fax_1","AM018_Inspectiont_Email_1","AM018_Inspectiont_Address_2","AM018_Inspectiont_Department_2","AM018_Inspectiont_Position_2","AM018_Inspectiont_Person_2","AM018_Inspectiont_Tel_2","AM018_Inspectiont_Fax_2","AM018_Inspectiont_Email_2","AM018_Inspectiont_Address_3","AM018_Inspectiont_Department_3","AM018_Inspectiont_Position_3","AM018_Inspectiont_Person_3","AM018_Inspectiont_Tel_3","AM018_Inspectiont_Fax_3","AM018_Inspectiont_Email_3"]
[1,{"$f":"ETL!$D$61","v":""},{"$f":"ETL!$D$59","v":""},{"$f":"ETL!$G$62","v":""},{"$f":"ETL!$D$62","v":""},{"$f":"ETL!$D$64","v":""},{"$f":"ETL!$D$66","v":""},{"$f":"ETL!$D$13","v":""},{"$f":"ETL!$D$14","v":""},{"$f":"ETL!$D$15","v":""},{"$f":"ETL!$D$16","v":""},{"$f":"ETL!$D$12","v":""},{"$f":"ETL!$D$17","v":""},{"$f":"ETL!$D$18","v":""},{"$f":"ETL!$D$19","v":""},{"$f":"ETL!$D$21","v":""},{"$f":"ETL!$D$22","v":""},{"$f":"ETL!$D$23","v":""},{"$f":"ETL!$D$24","v":""},{"$f":"ETL!$D$20","v":""},{"$f":"ETL!$D$25","v":""},{"$f":"ETL!$D$26","v":""},{"$f":"ETL!$D$27","v":""},{"$f":"ETL!$D$29","v":""},{"$f":"ETL!$D$30","v":""},{"$f":"ETL!$D$31","v":""},{"$f":"ETL!$D$32","v":""},{"$f":"ETL!$D$28","v":""},{"$f":"ETL!$D$33","v":""},{"$f":"ETL!$D$34","v":""},{"$f":"ETL!$D$35","v":""}]
["↓セルA５はVBAのバージョン管理処理にて使用しているため修正時注意する"]
["様式16",1]
["No","AT031_RelatesYear","AT031_ReportDay","AT031_PlantSiteCode","AT031_OwnerName","AT031_OwnerAddress","AT031_Changes","AT031_ChangesNew","AT031_ChangesOld","AT031_ChangesDate"]
[1,{"$f":"ETL!$D$6","v":0},{"$f":"ETL!$G$5","v":{"$error":"#NUM!"}},{"$f":"ETL!$D$61","v":""},{"$f":"ETL!$G$7","v":""},{"$f":"ETL!$D$11","v":""},{"$f":"ETL!$D$77","v":""},{"$f":"ETL!$D$78","v":""},{"$f":"ETL!$D$79","v":""},{"$f":"ETL!$D$80","v":""}]
[null,"↑AT031_RelatesYearはR5年改修時追加項目"]